[Event "Kragero Resort International 2022"]
[Site "Kragero"]
[Date "2022.02.26"]
[Round "7.1"]
[White "Engeset, Audun"]
[Black "Jonsson, Kristjan Dagur"]
[Result "0-1"]
[ECO "B12"]
[WhiteElo "1823"]
[BlackElo "1797"]
[Annotator "NA"]
[PlyCount "80"]
[EventDate "2022.02.23"]
[EventType "swiss"]
[EventCountry "NOR"]
[SourceTitle "playchess.com"]
[Source "ChessBase"]
[SourceQuality "1"]
[TimeControl "5400+30"]

1. e4 {[%emt 0:00:08]} c6 {[%emt 0:00:18]} 2. d4 {[%emt 0:00:09]} d5 {[%emt 0:00:13]} 3. e5 {[%emt 0:00:08]} Bf5 {[%emt 0:00:21]} 4. Nc3 {[%emt 0:00:14]} e6 {[%emt 0:00:39]} 5. g4 {[%emt 0:00:19]} Bg6 {[%emt 0:00:32]} 6. Nge2 {[%emt 0:00:11]} c5 {[%emt 0:00:43]} 7. Be3 {[%emt 0:04:28]} Nc6 {[%emt 0:04:59]} 8. Nf4 {[%emt 0:01:08]} cxd4 {[%emt 0:02:56]} 9. Bxd4 {[%emt 0:00:36]} Bxc2 {[%emt 0:15:18]} 10. Qxc2 {[%emt 0:03:47]} Nxd4 {[%emt 0:01:16]} 11. Qa4+ {[%emt 0:01:40]} Nc6 {[%emt 0:00:29]} 12. Bb5 {[%emt 0:02:05]} Nge7 {[%emt 0:03:04]} 13. Rd1 {[%emt 0:02:56]} Qc7 {[%emt 0:04:55]} 14. O-O $17 {[%emt 0:02:24]} g6 {[%emt 0:04:50]} 15. Rfe1 {[%emt 0:06:31]} Bg7 {[%emt 0:01:27]} 16. Nd3 {[%emt 0:16:14]} O-O {[%emt 0:01:38]} 17. Qf4 {[%emt 0:02:36]} a6 {[%emt 0:03:27]} 18. Ba4 {[%emt 0:01:56]} Rad8 {[%emt 0:03:17]} 19. Rc1 {[%emt 0:01:24]} Qa5 {[%emt 0:04:33]} 20. b4 {[%emt 0:00:54]} Qb6 {[%emt 0:01:22]} 21. a3 {[%emt 0:03:15]} Qd4 {[%emt 0:05:43]} 22. Qg3 {[%emt 0:00:58]} Rc8 {[%emt 0:05:28]} 23. Ne2 {[%emt 0:03:06]} Qa7 {[%emt 0:01:15]} 24. Qf4 {[%emt 0:01:36]} Rfd8 {[%emt 0:04:15]} 25. Bb3 {[%emt 0:00:59]} d4 {[%emt 0:01:13]} 26. Ng3 {[%emt 0:02:53]} Nd5 {[%emt 0:01:15]} 27. Qf3 {[%emt 0:03:38]} Qb8 {[%emt 0:01:40]} 28. Rc2 {[%emt 0:03:43]} Nc3 {[%emt 0:05:56]} 29. Qf4 {[%emt 0:06:06]} a5 {[%emt 0:01:34]} 30. Rd2 {[%emt 0:12:54]} Qc7 {[%emt 0:01:25]} 31. h4 {[%emt 0:03:37]} Qe7 {[%emt 0:01:27]} 32. Ne4 {[%emt 0:06:04]} Nxe4 {[%emt 0:00:41]} 33. Qxe4 {[%emt 0:01:03]} axb4 {[%emt 0:00:40]} 34. h5 {[%emt 0:04:44]} gxh5 {[%emt 0:01:30]} 35. Nf4 {[%emt 0:01:01]} Nxe5 {[%emt 0:03:05]} 36. Nxh5 {[%emt 0:00:51]} Ng6 {[%emt 0:01:38]} 37. Nxg7 {[%emt 0:00:48]} Kxg7 {[%emt 0:00:23]} 38. f4 {[%emt 0:01:50]} Rc3 {[%emt 0:02:38]} 39. Bc2 {[%emt 0:00:29]} Qh4 {[%emt 0:03:55]} 40. Rh2 {[%emt 0:00:35]} Qxg4+ {[%emt 0:01:56]} 0-1

[Event "Kragero Resort International 2022"]
[Site "Kragero"]
[Date "2022.02.26"]
[Round "7.2"]
[White "Stromhaug, Kristoffer Wang"]
[Black "Haug, Havard"]
[Result "0-1"]
[ECO "B38"]
[WhiteElo "1694"]
[BlackElo "1801"]
[Annotator "NA"]
[PlyCount "74"]
[EventDate "2022.02.23"]
[EventType "swiss"]
[EventCountry "NOR"]
[SourceTitle "playchess.com"]
[Source "ChessBase"]
[SourceQuality "1"]
[TimeControl "5400+30"]

1. e4 {[%emt 0:00:03]} c5 {[%emt 0:00:07]} 2. Nf3 {[%emt 0:00:13]} d6 {[%emt 0:00:23]} 3. d4 {[%emt 0:00:10]} cxd4 {[%emt 0:00:22]} 4. Nxd4 {[%emt 0:00:14]} Nf6 {[%emt 0:00:17]} 5. f3 {[%emt 0:00:14]} g6 {[%emt 0:00:17]} 6. c4 {[%emt 0:02:04]} Bg7 {[%emt 0:00:40]} 7. Nc3 {[%emt 0:00:40]} O-O {[%emt 0:00:44]} 8. Be3 {[%emt 0:00:52]} Nc6 {[%emt 0:00:54]} 9. Qd2 {[%emt 0:02:37]} Bd7 {[%emt 0:02:01]} 10. Be2 {[%emt 0:01:14]} Rc8 {[%emt 0:04:22]} 11. O-O {[%emt 0:03:20]} a6 {[%emt 0:07:45]} 12. Nd5 {[%emt 0:05:29]} Nxd5 {[%emt 0:01:41]} 13. cxd5 {[%emt 0:00:13]} Nxd4 {[%emt 0:01:10]} 14. Bxd4 {[%emt 0:00:11]} Qc7 {[%emt 0:02:15]} 15. Bxg7 {[%emt 0:02:12]} Kxg7 {[%emt 0:00:01]} 16. Rfc1 {[%emt 0:03:11]} Qb6+ {[%emt 0:03:18]} 17. Kf1 {[%emt 0:00:34]} f6 {[%emt 0:01:40]} 18. Rxc8 {[%emt 0:03:09]} Rxc8 {[%emt 0:00:17]} 19. Rc1 {[%emt 0:01:03]} Rc5 $11 {[%emt 0:02:36]} 20. b4 {[%emt 0:10:36]} Rc7 {[%emt 0:05:53]} 21. a3 {[%emt 0:02:37]} Bb5 {[%emt 0:05:47]} 22. Bxb5 {[%emt 0:01:24]} Qxb5+ {[%emt 0:01:35]} 23. Ke1 {[%emt 0:00:38]} Rxc1+ {[%emt 0:02:03]} 24. Qxc1 {[%emt 0:00:06]} Qd3 {[%emt 0:00:39]} 25. Qc7 {[%emt 0:10:35]} Kf7 {[%emt 0:01:08]} 26. Qxb7 {[%emt 0:00:10]} Qxa3 {[%emt 0:00:33]} 27. Kf2 {[%emt 0:00:46]} Qb2+ {[%emt 0:01:05]} 28. Kg3 {[%emt 0:01:40]} a5 {[%emt 0:01:09]} 29. b5 {[%emt 0:00:08]} a4 {[%emt 0:00:12]} 30. b6 {[%emt 0:00:15]} a3 {[%emt 0:00:14]} 31. Qa7 {[%emt 0:00:22]} a2 {[%emt 0:00:11]} 32. b7 {[%emt 0:00:13]} a1=Q {[%emt 0:00:07]} 33. Qxa1 {[%emt 0:00:10]} Qxa1 {[%emt 0:00:05]} 34. b8=Q {[%emt 0:00:09]} Qe1+ {[%emt 0:00:05]} 35. Kh3 {[%emt 0:07:43]} g5 {[%emt 0:00:28]} 36. g3 {[%emt 0:00:05]} Qf1+ {[%emt 0:00:05]} 37. Kg4 {[%emt 0:00:04]} h5+ {[%emt 0:00:08]} 0-1

[Event "Kragero Resort International 2022"]
[Site "Kragero"]
[Date "2022.02.26"]
[Round "7.3"]
[White "Ostensen, Nicolai Maxime"]
[Black "Hammari, Vinjar"]
[Result "1-0"]
[ECO "A36"]
[WhiteElo "1728"]
[BlackElo "1775"]
[Annotator "NA"]
[PlyCount "139"]
[EventDate "2022.02.23"]
[EventType "swiss"]
[EventCountry "NOR"]
[SourceTitle "playchess.com"]
[Source "ChessBase"]
[SourceQuality "1"]
[TimeControl "5400+30"]

1. c4 {[%emt 0:00:06]} c5 {[%emt 0:00:36]} 2. Nc3 {[%emt 0:00:05]} Nc6 {[%emt 0:00:04]} 3. g3 {[%emt 0:00:05]} g6 {[%emt 0:00:04]} 4. Bg2 {[%emt 0:00:03]} Bg7 {[%emt 0:00:04]} 5. a3 {[%emt 0:00:09]} d6 {[%emt 0:00:28]} 6. e3 {[%emt 0:00:16]} Bxc3 {[%emt 0:00:49]} 7. dxc3 {[%emt 0:02:06]} f5 {[%emt 0:00:25]} 8. h4 {[%emt 0:01:31]} h6 {[%emt 0:06:10]} 9. Ne2 {[%emt 0:00:25]} Nf6 {[%emt 0:00:21]} 10. Nf4 {[%emt 0:00:34]} Kf7 {[%emt 0:08:23]} 11. Nd5 {[%emt 0:03:41]} e5 {[%emt 0:02:29]} 12. Nxf6 {[%emt 0:07:17]} Qxf6 {[%emt 0:00:07]} 13. Bd5+ {[%emt 0:00:30]} Kg7 {[%emt 0:03:34]} 14. e4 {[%emt 0:03:36]} fxe4 {[%emt 0:01:37]} 15. Bxe4 {[%emt 0:00:25]} Rf8 {[%emt 0:00:04]} 16. Qd2 {[%emt 0:00:42]} Rh8 {[%emt 0:02:35]} 17. b3 {[%emt 0:03:49]} Na5 {[%emt 0:02:21]} 18. Qc2 {[%emt 0:00:49]} Bg4 {[%emt 0:00:21]} 19. Be3 {[%emt 0:02:19]} Bf3 {[%emt 0:01:22]} 20. Bxf3 {[%emt 0:02:35]} Qxf3 {[%emt 0:00:33]} 21. Rg1 {[%emt 0:00:16]} h5 {[%emt 0:02:14]} 22. Rb1 {[%emt 0:00:52]} Nc6 {[%emt 0:01:16]} 23. Qd3 {[%emt 0:01:46]} Qf5 {[%emt 0:01:27]} 24. Kd2 {[%emt 0:03:09]} e4 {[%emt 0:00:40]} 25. Qe2 {[%emt 0:03:28]} Ne5 {[%emt 0:01:58]} 26. Kc2 {[%emt 0:00:18]} Rad8 {[%emt 0:02:16]} 27. Rbd1 {[%emt 0:00:19]} Rhe8 {[%emt 0:04:51]} 28. Rd5 {[%emt 0:00:24]} Re6 {[%emt 0:02:54]} 29. Rgd1 {[%emt 0:02:18]} b6 {[%emt 0:00:23]} 30. Kb1 {[%emt 0:00:45]} Qg4 {[%emt 0:05:48]} 31. Qxg4 {[%emt 0:03:56]} Nxg4 {[%emt 0:00:20]} 32. Re1 {[%emt 0:00:22]} Nxe3 {[%emt 0:02:32]} 33. Rxe3 {[%emt 0:00:07]} Rf8 {[%emt 0:00:09]} 34. Re2 {[%emt 0:01:12]} Rf3 {[%emt 0:00:44]} 35. Kc2 {[%emt 0:00:53]} Kf7 {[%emt 0:00:24]} 36. b4 {[%emt 0:02:32]} Ke7 {[%emt 0:00:55]} 37. Rd1 {[%emt 0:00:40]} e3 {[%emt 0:00:21]} 38. Rxe3 {[%emt 0:03:36]} Rxf2+ {[%emt 0:00:07]} 39. Kd3 {[%emt 0:00:27]} Rxe3+ {[%emt 0:02:27]} 40. Kxe3 {[%emt 0:00:06]} Ra2 {[%emt 0:00:08]} 41. b5 {[%emt 0:00:39]} Rxa3 {[%emt 0:00:05]} 42. Kd3 {[%emt 0:00:30]} d5 {[%emt 0:01:33]} 43. cxd5 {[%emt 0:03:48]} Kd6 {[%emt 0:00:14]} 44. Kc2 {[%emt 0:01:41]} Ra4 {[%emt 0:01:17]} 45. Kb2 {[%emt 0:04:56]} Rg4 {[%emt 0:01:21]} 46. Ra1 {[%emt 0:01:33]} Kxd5 {[%emt 0:01:11]} 47. Kb3 {[%emt 0:01:23]} Rxg3 {[%emt 0:01:27]} 48. Rxa7 {[%emt 0:00:06]} Re3 {[%emt 0:01:18]} 49. Rd7+ {[%emt 0:00:13]} Ke5 {[%emt 0:07:49]} 50. Rb7 {[%emt 0:00:12]} Rg3 {[%emt 0:00:50]} 51. Rxb6 {[%emt 0:00:36]} Rg4 {[%emt 0:01:15]} 52. Rc6 {[%emt 0:01:02]} Kd5 {[%emt 0:00:39]} 53. Rc8 {[%emt 0:02:55]} Rg1 {[%emt 0:00:47]} 54. Rd8+ {[%emt 0:00:08]} Ke6 {[%emt 0:00:18]} 55. Kc4 {[%emt 0:00:32]} Ke7 {[%emt 0:00:06]} 56. Rd2 {[%emt 0:00:15]} g5 {[%emt 0:00:51]} 57. Kxc5 {[%emt 0:01:15]} gxh4 {[%emt 0:00:10]} 58. b6 {[%emt 0:00:18]} h3 {[%emt 0:00:59]} 59. b7 {[%emt 0:00:31]} Rb1 {[%emt 0:00:08]} 60. Kc6 {[%emt 0:00:12]} Rb3 {[%emt 0:00:27]} 61. c4 {[%emt 0:00:32]} h4 {[%emt 0:01:30]} 62. Kc7 {[%emt 0:00:27]} Rc3 {[%emt 0:00:09]} 63. Re2+ {[%emt 0:00:04]} Kf6 {[%emt 0:00:12]} 64. b8=Q {[%emt 0:00:10]} Rxc4+ {[%emt 0:00:08]} 65. Kd6 {[%emt 0:00:04]} Rg4 {[%emt 0:00:40]} 66. Qf8+ {[%emt 0:00:11]} Kg6 {[%emt 0:00:15]} 67. Qg8+ {[%emt 0:00:17]} Kf5 {[%emt 0:00:14]} 68. Qf7+ {[%emt 0:00:06]} Kg5 {[%emt 0:00:09]} 69. Re5+ {[%emt 0:00:04]} Kh6 {[%emt 0:00:07]} 70. Rh5# {[%emt 0:00:03]} 1-0

[Event "Kragero Resort International 2022"]
[Site "Kragero"]
[Date "2022.02.26"]
[Round "7.4"]
[White "Haugen, Lars Tormod"]
[Black "Thorisson, Benedikt"]
[Result "1/2-1/2"]
[ECO "A28"]
[WhiteElo "1710"]
[BlackElo "1790"]
[Annotator "NA"]
[PlyCount "39"]
[EventDate "2022.02.23"]
[EventType "swiss"]
[EventCountry "NOR"]
[SourceTitle "playchess.com"]
[Source "ChessBase"]
[SourceQuality "1"]
[TimeControl "5400+30"]

1. c4 {[%emt 0:00:03]} e5 {[%emt 0:00:07]} 2. Nc3 {[%emt 0:00:10]} Nf6 {[%emt 0:00:09]} 3. Nf3 {[%emt 0:00:23]} Nc6 {[%emt 0:00:09]} 4. a3 {[%emt 0:00:21]} d5 {[%emt 0:00:16]} 5. cxd5 {[%emt 0:00:07]} Nxd5 {[%emt 0:00:10]} 6. Qc2 {[%emt 0:00:08]} Be6 {[%emt 0:00:19]} 7. e3 {[%emt 0:01:11]} Bd6 {[%emt 0:02:07]} 8. Be2 {[%emt 0:05:08]} f6 {[%emt 0:02:56]} 9. Nxd5 {[%emt 0:13:28]} Bxd5 {[%emt 0:00:26]} 10. Bc4 {[%emt 0:00:26]} Bxc4 {[%emt 0:00:51]} 11. Qxc4 {[%emt 0:00:03]} Qd7 {[%emt 0:00:13]} 12. O-O {[%emt 0:08:42]} O-O-O {[%emt 0:00:43]} 13. d3 {[%emt 0:08:35]} Rhe8 {[%emt 0:01:37]} 14. b4 {[%emt 0:08:53]} Qe6 {[%emt 0:08:10]} 15. Bb2 {[%emt 0:05:10]} e4 {[%emt 0:09:14]} 16. Qxe6+ {[%emt 0:07:19]} Rxe6 {[%emt 0:00:10]} 17. dxe4 {[%emt 0:03:54]} Rxe4 {[%emt 0:00:12]} 18. Rfd1 {[%emt 0:02:58]} Re7 {[%emt 0:09:01]} 19. Kf1 {[%emt 0:01:34]} Ne5 {[%emt 0:02:37]} 20. Nxe5 {[%emt 0:04:07]} 1/2-1/2

[Event "Kragero Resort International 2022"]
[Site "Kragero"]
[Date "2022.02.26"]
[Round "7.5"]
[White "Amundsen, Ask"]
[Black "Strand, Amund Pihl"]
[Result "1-0"]
[ECO "B02"]
[WhiteElo "1819"]
[BlackElo "1748"]
[Annotator "NA"]
[PlyCount "87"]
[EventDate "2022.02.23"]
[EventType "swiss"]
[EventCountry "NOR"]
[SourceTitle "playchess.com"]
[Source "ChessBase"]
[SourceQuality "1"]
[TimeControl "5400+30"]

1. e4 {[%emt 0:00:04]} Nf6 {[%emt 0:00:40]} 2. e5 {[%emt 0:00:24]} Nd5 {[%emt 0:00:11]} 3. c4 {[%emt 0:01:29]} Nb6 {[%emt 0:00:09]} 4. a4 {[%emt 0:01:22]} a5 {[%emt 0:00:28]} 5. Ra3 {[%emt 0:00:26]} d6 {[%emt 0:01:01]} 6. exd6 {[%emt 0:00:47]} exd6 {[%emt 0:00:09]} 7. d4 {[%emt 0:00:39]} Be7 {[%emt 0:00:11]} 8. Rg3 {[%emt 0:02:04]} O-O {[%emt 0:02:14]} 9. Nf3 {[%emt 0:03:50]} Nc6 {[%emt 0:01:11]} 10. Nc3 {[%emt 0:10:01]} f5 {[%emt 0:07:21]} 11. Bf4 {[%emt 0:03:29]} Nb4 {[%emt 0:10:26]} 12. Be2 $11 {[%emt 0:04:28]} Kh8 {[%emt 0:07:45]} 13. Qd2 {[%emt 0:03:57]} Nd7 {[%emt 0:07:05]} 14. h4 {[%emt 0:14:25]} Nf6 {[%emt 0:06:57]} 15. h5 {[%emt 0:12:27]} Ne4 {[%emt 0:10:03]} 16. Nxe4 {[%emt 0:00:58]} fxe4 {[%emt 0:00:35]} 17. Ng5 {[%emt 0:01:41]} Bf5 {[%emt 0:11:03]} 18. Be3 {[%emt 0:07:18]} Bf6 {[%emt 0:03:56]} 19. h6 {[%emt 0:10:40]} g6 {[%emt 0:03:06]} 20. Bg4 {[%emt 0:08:11]} Nd3+ {[%emt 0:01:44]} 21. Kf1 {[%emt 0:01:00]} Nxf2 {[%emt 0:04:26]} 22. Kxf2 {[%emt 0:07:33]} Bxg4 {[%emt 0:00:41]} 23. Rxg4 {[%emt 0:00:37]} Bxg5+ {[%emt 0:00:25]} 24. Ke2 {[%emt 0:00:16]} Bxe3 {[%emt 0:03:33]} 25. Qxe3 {[%emt 0:00:09]} Qd7 {[%emt 0:01:03]} 26. Rxe4 {[%emt 0:01:44]} Qxa4 {[%emt 0:00:22]} 27. Qc3 {[%emt 0:00:39]} Qb4 {[%emt 0:03:28]} 28. Kd3 {[%emt 0:02:12]} Rf2 {[%emt 0:04:48]} 29. Qxb4 {[%emt 0:01:28]} axb4 {[%emt 0:00:05]} 30. Ra1 {[%emt 0:00:13]} Raf8 {[%emt 0:00:22]} 31. Ra7 {[%emt 0:00:20]} Rxg2 {[%emt 0:02:50]} 32. Rxb7 {[%emt 0:00:32]} Rxb2 {[%emt 0:01:09]} 33. c5 {[%emt 0:01:00]} d5 {[%emt 0:03:46]} 34. Rf4 {[%emt 0:00:05]} Ra8 {[%emt 0:00:49]} 35. Ra7 {[%emt 0:00:19]} Rb3+ {[%emt 0:01:11]} 36. Kc2 {[%emt 0:00:24]} Ra3 {[%emt 0:00:08]} 37. Rxc7 {[%emt 0:00:45]} b3+ {[%emt 0:03:04]} 38. Kb2 {[%emt 0:00:14]} Ra2+ {[%emt 0:00:33]} 39. Kxb3 {[%emt 0:00:13]} Rh2 {[%emt 0:00:28]} 40. c6 {[%emt 0:00:59]} Rb8+ {[%emt 0:00:25]} 41. Rb7 {[%emt 0:00:09]} Re8 {[%emt 0:00:22]} 42. c7 {[%emt 0:01:05]} Rh1 {[%emt 0:00:35]} 43. Rf2 {[%emt 0:00:20]} Rc1 {[%emt 0:00:35]} 44. Rb8 {[%emt 0:00:29]} 1-0

[Event "Kragero Resort International 2022"]
[Site "Kragero"]
[Date "2022.02.26"]
[Round "7.6"]
[White "Helland, Phillip"]
[Black "Omarsson, Adam"]
[Result "0-1"]
[ECO "A49"]
[WhiteElo "1760"]
[BlackElo "1546"]
[Annotator "NA"]
[PlyCount "84"]
[EventDate "2022.02.23"]
[EventType "swiss"]
[EventCountry "NOR"]
[SourceTitle "playchess.com"]
[Source "ChessBase"]
[SourceQuality "1"]
[TimeControl "5400+30"]

1. d4 {[%emt 0:00:04]} g6 {[%emt 0:00:12]} 2. Nf3 {[%emt 0:00:17]} Nf6 {[%emt 0:00:27]} 3. g3 {[%emt 0:00:16]} Bg7 {[%emt 0:01:01]} 4. Bg2 {[%emt 0:00:25]} O-O {[%emt 0:01:06]} 5. c4 {[%emt 0:00:40]} c5 {[%emt 0:00:50]} 6. O-O {[%emt 0:00:29]} cxd4 {[%emt 0:01:14]} 7. Qxd4 {[%emt 0:02:34]} Nc6 {[%emt 0:01:15]} 8. Qh4 {[%emt 0:04:21]} Qb6 {[%emt 0:02:47]} 9. Nc3 {[%emt 0:02:52]} Re8 {[%emt 0:04:15]} 10. b3 {[%emt 0:07:07]} a5 {[%emt 0:06:11]} 11. Bb2 {[%emt 0:01:51]} a4 {[%emt 0:01:30]} 12. c5 {[%emt 0:05:13]} Qxc5 {[%emt 0:01:20]} 13. Nxa4 {[%emt 0:03:29]} Qc2 {[%emt 0:00:53]} 14. Nd4 {[%emt 0:08:46]} Nxd4 {[%emt 0:00:43]} 15. Qxd4 {[%emt 0:00:41]} Rxa4 {[%emt 0:02:26]} 16. bxa4 {[%emt 0:01:21]} Nh5 {[%emt 0:00:09]} 17. Qb4 {[%emt 0:02:48]} Bxb2 {[%emt 0:01:32]} 18. Rab1 {[%emt 0:00:50]} Bf6 {[%emt 0:00:23]} 19. Qb3 {[%emt 0:08:41]} Qxe2 {[%emt 0:02:15]} 20. Bxb7 {[%emt 0:00:52]} Bxb7 {[%emt 0:00:17]} 21. Qxb7 {[%emt 0:00:16]} Qxa2 {[%emt 0:00:29]} 22. Qxd7 {[%emt 0:01:38]} Ra8 {[%emt 0:00:22]} 23. Rb4 {[%emt 0:04:22]} Kg7 {[%emt 0:04:57]} 24. Qc6 {[%emt 0:04:16]} Ra5 {[%emt 0:01:04]} 25. g4 {[%emt 0:05:07]} Qd2 {[%emt 0:00:32]} 26. Qe4 {[%emt 0:09:28]} Bc3 {[%emt 0:00:39]} 27. Rb5 {[%emt 0:03:29]} Nf6 {[%emt 0:00:19]} 28. Qe3 {[%emt 0:01:03]} Qxe3 {[%emt 0:00:18]} 29. fxe3 {[%emt 0:00:11]} Rxa4 {[%emt 0:00:05]} 30. h3 {[%emt 0:01:12]} Bd2 {[%emt 0:00:44]} 31. Rb3 {[%emt 0:02:52]} Nd5 {[%emt 0:01:24]} 32. e4 {[%emt 0:02:00]} Rxe4 {[%emt 0:00:11]} 33. Rd3 {[%emt 0:00:29]} Be3+ {[%emt 0:00:16]} 34. Kg2 {[%emt 0:00:27]} e6 {[%emt 0:00:14]} 35. Rb1 {[%emt 0:01:00]} Bg5 {[%emt 0:00:32]} 36. Kg3 {[%emt 0:00:13]} Re3+ {[%emt 0:01:18]} 37. Rxe3 {[%emt 0:00:06]} Bxe3 {[%emt 0:00:06]} 38. Rb7 {[%emt 0:00:30]} Nf6 {[%emt 0:01:06]} 39. Kf3 {[%emt 0:00:12]} Bd2 {[%emt 0:00:27]} 40. Ke2 {[%emt 0:00:10]} Bg5 {[%emt 0:01:04]} 41. Rb5 {[%emt 0:00:18]} Bh4 {[%emt 0:00:42]} 42. g5 {[%emt 0:00:30]} Nd5 {[%emt 0:00:05]} 0-1

[Event "Kragero Resort International 2022"]
[Site "Kragero"]
[Date "2022.02.26"]
[Round "7.7"]
[White "Stolp, Aleksander"]
[Black "Gharibyan, Mane"]
[Result "1-0"]
[ECO "E15"]
[WhiteElo "1680"]
[BlackElo "1592"]
[Annotator "NA"]
[PlyCount "111"]
[EventDate "2022.02.23"]
[EventType "swiss"]
[EventCountry "NOR"]
[SourceTitle "playchess.com"]
[Source "ChessBase"]
[SourceQuality "1"]
[TimeControl "5400+30"]

1. d4 {[%emt 0:00:03]} Nf6 {[%emt 0:00:22]} 2. c4 {[%emt 0:00:09]} e6 {[%emt 0:00:03]} 3. Nf3 {[%emt 0:00:08]} b6 {[%emt 0:00:22]} 4. g3 {[%emt 0:01:24]} Ba6 {[%emt 0:00:57]} 5. b3 {[%emt 0:00:38]} Bb4+ {[%emt 0:01:19]} 6. Bd2 {[%emt 0:00:53]} Be7 {[%emt 0:00:43]} 7. Nc3 {[%emt 0:03:31]} Bb7 {[%emt 0:01:32]} 8. Bg2 {[%emt 0:03:07]} O-O {[%emt 0:01:33]} 9. O-O {[%emt 0:01:49]} c5 {[%emt 0:07:09]} 10. Re1 {[%emt 0:13:10]} d5 {[%emt 0:10:38]} 11. cxd5 {[%emt 0:06:26]} exd5 {[%emt 0:03:04]} 12. dxc5 {[%emt 0:05:03]} bxc5 {[%emt 0:01:54]} 13. Rc1 {[%emt 0:03:08]} Nbd7 {[%emt 0:20:28]} 14. Bg5 {[%emt 0:04:17]} h6 {[%emt 0:02:12]} 15. Bxf6 {[%emt 0:01:11]} Nxf6 {[%emt 0:00:55]} 16. Na4 {[%emt 0:11:08]} Rc8 {[%emt 0:06:50]} 17. Ne5 {[%emt 0:18:36]} Qa5 {[%emt 0:01:54]} 18. Qc2 {[%emt 0:00:00]} Rfd8 {[%emt 0:16:10]} 19. Red1 {[%emt 0:01:41]} Bd6 {[%emt 0:06:07]} 20. Qf5 {[%emt 0:01:09]} Rc7 {[%emt 0:02:17]} 21. Ng4 {[%emt 0:01:18]} Nxg4 {[%emt 0:05:11]} 22. Qxg4 {[%emt 0:00:08]} c4 {[%emt 0:03:26]} 23. Qf5 {[%emt 0:03:59]} Ba3 {[%emt 0:00:37]} 24. Rc2 {[%emt 0:03:29]} c3 {[%emt 0:06:11]} 25. Rd4 {[%emt 0:06:24]} Bb4 {[%emt 0:00:00]} 26. Qd3 {[%emt 0:02:07]} Ba6 {[%emt 0:00:19]} 27. Qd1 {[%emt 0:00:30]} Rcd7 {[%emt 0:00:28]} 28. e3 {[%emt 0:01:36]} Rd6 {[%emt 0:01:11]} 29. Qc1 {[%emt 0:01:24]} Rc8 {[%emt 0:00:24]} 30. a3 {[%emt 0:00:47]} Bc5 {[%emt 0:00:16]} 31. b4 {[%emt 0:00:42]} Bxb4 {[%emt 0:00:51]} 32. Rxb4 {[%emt 0:00:19]} Bb5 {[%emt 0:00:32]} 33. Nxc3 {[%emt 0:01:21]} Bd3 {[%emt 0:00:12]} 34. Rd2 {[%emt 0:00:33]} Qa6 {[%emt 0:00:23]} 35. Rd4 {[%emt 0:01:12]} Bg6 {[%emt 0:00:47]} 36. Qa1 {[%emt 0:01:13]} Rdc6 {[%emt 0:00:20]} 37. Ne2 {[%emt 0:01:40]} Bh5 {[%emt 0:00:45]} 38. g4 {[%emt 0:00:18]} Bg6 {[%emt 0:00:04]} 39. Rxd5 {[%emt 0:01:03]} Kh7 {[%emt 0:00:36]} 40. Bf3 {[%emt 0:00:52]} Rb6 {[%emt 0:00:41]} 41. Kg2 {[%emt 0:01:22]} Rb3 {[%emt 0:00:43]} 42. a4 {[%emt 0:00:57]} Rcb8 {[%emt 0:00:26]} 43. Qe5 {[%emt 0:00:26]} Qxa4 {[%emt 0:00:20]} 44. Ra5 {[%emt 0:00:11]} Qb4 {[%emt 0:00:21]} 45. Rda2 {[%emt 0:00:43]} Rb1 {[%emt 0:00:07]} 46. Rxa7 {[%emt 0:00:37]} Qe1 {[%emt 0:00:07]} 47. Kg3 {[%emt 0:00:36]} R8b5 {[%emt 0:01:26]} 48. Qc3 {[%emt 0:00:31]} Qf1 {[%emt 0:00:40]} 49. Bg2 {[%emt 0:00:37]} Qd1 {[%emt 0:00:14]} 50. Rd2 {[%emt 0:00:17]} Qe1 {[%emt 0:00:20]} 51. Rd8 {[%emt 0:00:35]} Qxe2 {[%emt 0:00:59]} 52. Raa8 {[%emt 0:00:06]} Bc2 {[%emt 0:00:33]} 53. Rh8+ {[%emt 0:00:30]} Kg6 {[%emt 0:00:02]} 54. Qc6+ {[%emt 0:00:16]} f6 {[%emt 0:00:25]} 55. Qe8+ {[%emt 0:00:11]} Kg5 {[%emt 0:00:35]} 56. h4# {[%emt 0:00:14]} 1-0

[Event "Kragero Resort International 2022"]
[Site "Kragero"]
[Date "2022.02.26"]
[Round "7.8"]
[White "Gilmessen, Subhan"]
[Black "Carlin, Tormod"]
[Result "0-1"]
[ECO "B20"]
[WhiteElo "1381"]
[BlackElo "1630"]
[Annotator "NA"]
[PlyCount "62"]
[EventDate "2022.02.23"]
[EventType "swiss"]
[EventCountry "NOR"]
[SourceTitle "playchess.com"]
[Source "ChessBase"]
[SourceQuality "1"]
[TimeControl "5400+30"]

1. e4 {[%emt 0:00:03]} c5 {[%emt 0:00:04]} 2. g3 {[%emt 0:00:05]} d5 {[%emt 0:00:05]} 3. exd5 {[%emt 0:00:05]} Qxd5 {[%emt 0:00:07]} 4. Nf3 {[%emt 0:00:05]} Bg4 {[%emt 0:00:05]} 5. Bg2 {[%emt 0:00:05]} Qe6+ {[%emt 0:00:04]} 6. Kf1 {[%emt 0:00:07]} Nc6 {[%emt 0:00:19]} 7. d3 {[%emt 0:00:05]} Qd7 {[%emt 0:00:05]} 8. Na3 {[%emt 0:00:35]} e6 {[%emt 0:03:31]} 9. h3 {[%emt 0:00:05]} Bh5 {[%emt 0:00:11]} 10. Nc4 {[%emt 0:00:40]} b5 {[%emt 0:00:39]} 11. Na3 {[%emt 0:09:23]} Rb8 {[%emt 0:00:44]} 12. g4 {[%emt 0:03:28]} Bg6 {[%emt 0:00:49]} 13. Bf4 {[%emt 0:01:33]} Bd6 {[%emt 0:00:33]} 14. Bxd6 {[%emt 0:00:28]} Qxd6 {[%emt 0:00:08]} 15. Nh4 {[%emt 0:01:08]} Nge7 {[%emt 0:01:50]} 16. Nxg6 {[%emt 0:00:10]} Nxg6 {[%emt 0:00:11]} 17. Be4 {[%emt 0:01:35]} Nf4 {[%emt 0:03:36]} 18. Kg1 {[%emt 0:05:19]} a6 {[%emt 0:05:50]} 19. Qd2 {[%emt 0:00:35]} e5 {[%emt 0:03:26]} 20. Rd1 {[%emt 0:00:44]} Rd8 {[%emt 0:01:46]} 21. Kh2 {[%emt 0:02:09]} g5 {[%emt 0:01:56]} 22. Kg3 {[%emt 0:02:51]} Nd4 {[%emt 0:18:03]} 23. Rde1 {[%emt 0:00:47]} h5 {[%emt 0:00:30]} 24. h4 {[%emt 0:00:04]} Qe6 {[%emt 0:03:21]} 25. gxh5 {[%emt 0:01:12]} gxh4+ {[%emt 0:00:20]} 26. Rxh4 {[%emt 0:00:24]} Rg8+ {[%emt 0:01:29]} 27. Kh2 {[%emt 0:01:10]} Qf6 {[%emt 0:04:43]} 28. Rh3 {[%emt 0:04:28]} Nxh3 {[%emt 0:01:24]} 29. Kxh3 {[%emt 0:00:18]} Nf3 {[%emt 0:00:06]} 30. Bxf3 {[%emt 0:01:29]} Qxf3+ {[%emt 0:00:15]} 31. Kh4 {[%emt 0:00:15]} Rg4# {[%emt 0:00:09]} 0-1